Workbook

Sheet Dry Sorbent Injection
A4: Dry Sorbent Injection System - Fort Wainwright
A6: Variable | B6: Designation | C6: Units | D6: Value | E6: Calculation
A7: Unit Size (Gross) | B7: A | C7: (MW) | D7: 138 | E7: <-- User Input (Conservative assumption based on a total heat input of 1380 MMBtu/hour)
A8: Retrofit Factor | B8: B | D8: 1 | E8: <-- User Input (An "average" retrofit has a factor of 1.0)
A9: Gross Heat Rate | B9: C | C9: (Btu/kWh) | D9: 10000 | E9: <-- User Input
A10: SO2 Rate | B10: D | C10: (lb/MMBtu) | D10: 0.46 | E10: <-- User Input
A11: Type of Coal | B11: E | D11: sub-bituminous | E11: <-- User Input
A12: Particulate Capture | B12: F | D12: Baghouse | E12: <-- User Input
A13: Milled Trona | B13: G | D13: TRUE | E13: Based on in-line milling equipment
A14: Removal Target | B14: H | C14: (%) | D14: 80 | E14: Maximum Removal Targets: Unmilled Trona with an ESP = 65% Milled Trona with an ESP = 80% Unmilled Trona with a Baghouse = 80% Milled Trona with Baghouse = 90%
A15: Heat Input | B15: J | C15: (Btu/hr) | D15: =D7*D9*1000 -> 1380000000 | E15: A*C*1000
A16: NSR | B16: K | D16: =IF(D14<40,0.016*D14,0.208*EXP(0.0281*D14)) -> 1.9695061 | E16: Unmilled Trona with an ESP = if( H<40,0.0350*H,0.352e^(0.0345*H)) Milled Trona with an ESP = if( H<40,0.0270*H,0.353e^(0.0280*H)) Unmilled Trona with an BGH = if( H<40,0.0215*H,0.295e^(0.0267*H)) Milled Trona with an BGH = if( H<40,0.0160*H,0.208e^(0.0281*H))
A17: Trona Feed Rate | B17: M | C17: (ton/hr) | D17: =(0.0000012011)*D16*D7*D9*D10 -> 1.501666234 | E17: (1.2011x10^-06)*K*A*C*D
A18: Sorbent Waste Rate | B18: N | C18: (ton/hr) | D18: =(0.7035-0.00073696*D14/D16)*D17 -> 1.011470095 | E18: (0.7035-0.00073696*H/K)*M Based on a final reaction product of Na2SO4 and unreacted dry sorbent as Na2CO3.
A19: Fly Ash Waste Rate | B19: P | C19: (ton/hr) | D19: =(D15/1000)*0.07*(1-0.6)/(2*7560) -> 2.555555556 | E19: (A*C)*Ash incoal*(1-Boiler Ash Removal)/(2*HHV) For Bituminous Coal: Ash in Coal = 0.12; Boiler Ash Removal = 0.2, HHV = 11,000 For PRB Coal: Ash in Coal = 0.06; Boiler Ash Removal = 0.2, HHV = 8,400 For Lignite Coal: Ash in Coal = 0.08; Boiler Ash Removal = 0.2, HHV = 7,200 <-- User Input (Usibelli Coal: Ash in Coal = 0.07; Boiler Ash Removal = 0.6; HHV = 7,560)
A20: Aux Power | B20: Q | C20: (%) | D20: =D17*20/D7 -> 0.2176327875 | E20: =if Milled Trona M*20/A else M*18/A
A21: Trona Cost | B21: R | C21: ($/ton) | D21: 451 | E21: <-- User Input (based on delivered price paid by Healy)
A22: Waste Disposal Cost | B22: S | C22: ($/ton) | D22: 50
A23: Aux Power Cost | B23: T | C23: ($/kWh) | D23: 0.21 | E23: <-- User Input ( http://www.gvea.com/rates/rates )
A24: Operating Labor Rate | B24: U | C24: ($/hr) | D24: 60 | E24: <-- User Input (Labor cost including all benefits)
A25: IPM Model - Updates to Cost and Performance for APC Technologies - Dry Sorbent Injection for SO2 Control Cost Development Methodology, August 2010, prepared by Sargent & Lundy LLC for USEPA. https://www.epa.gov/sites/production/files/2015-07/documents/append5_4.pdf
A26: Capital Cost Calculation (2012 dollars) | E26: Comments
A28: Includes - Equipment, installation, building, foundations, electrical, and a retrofit difficulty factor of 1.0
A30: Base Module (BM) ($) | C30: = | D30: =IF(D17>25,(750000*D8*D17),(7516000*D8*D17^0.284)) -> 8435942.704 | E30: Base DSI module includes all equipment from unloading to injection
A31: Unmilled Trona = if(M>25 then (682,000*B*M) else 6,833,000*B*(M^0.284)
A32: Milled Trona = if(M>25 then (750,000*B*M) else 7,516,000*B*(M^0.284)
A33: BM ($/kW) | C33: = | D33: =D30/(D7*1000) -> 61.13001959 | E33: Base module cost per kW
A35: Total Project Cost
A37: A1 = 10% of BM | C37: = | D37: =0.05*$D$30 -> 421797.1352 | E37: Engineering and construction management costs (CC Manual)
A38: A2 = 10% of BM | C38: = | D38: =0.05*$D$30 -> 421797.1352 | E38: Labor adjustment for 6 x 10 hour shift premium, per diem, etc. (CC Manual)
A39: A3 = 10% of BM | C39: = | D39: =0.05*$D$30 -> 421797.1352 | E39: Contractor profit and fees (CC Manual)
A41: CECC ($) - Excludes Owner's Costs = BM + A1 + A2 + A3 | C41: = | D41: =D30+D37+D38+D39 -> 9701334.109 | E41: Capital, engineering, and construction costs subtotal
A42: CECC ($/kW) - Excludes Owner's Costs | C42: = | D42: =D41/(D7*1000) -> 70.29952253 | E42: Capital, engineering, and construction costst subtotal per kW
A44: B1 = 5% of CECC | C44: = | D44: =0.05*D41 -> 485066.7055 | E44: Owner's costs including all "home office" costs (owner's engineering, management, and procurement activities)
A46: TPC ($) - Includes Owners Costs = CECC + B1 | C46: = | D46: =D41+D44 -> 10186400.81 | E46: Total project cost without Allowance for Funds Used During Construction (AFUDC)
A47: TPC ($/kW) - Include Owner's Costs | C47: = | D47: =D46/(D7*1000) -> 73.81449866 | E47: Total project cost per kW without AFUDC
A49: B2 = 0% of (CECC + B1) | C49: = | D49: 0 | E49: AFUDC (Zero for less than 1 year engineering and construction cycle)
A51: TPC ($) = CECC + B1 + B2 | C51: = | D51: =D46+D49 -> 10186400.81 | E51: Total project cost
A52: TPC ($/kW) | C52: = | D52: =D51/(D7*1000) -> 73.81449866 | E52: Total project cost per kW
A62: Dry Sorbent Injection System - Fort Wainwright
A65: Direct Annual Costs
A66: Fixed Operating and Maintenance (O&M) Cost
A68: FOMO ($/kW yr) = (1 additional operators)*(2080)*U/(A*1000) | C68: = | D68: =1*2080*D24/(D7*1000) -> 0.9043478261 | E68: Fixed O&M additional operating labor costs
A69: FOMM ($/kW yr) = BM*0.01/(B*A*1000) | C69: = | D69: =D30*0.01/(D8*D7*1000) -> 0.6113001959 | E69: Fixed O&M additional maintenance material and labor costs
A70: FOMA ($/kW yr) = 0.03*(FOMO+0.4*FOMM) | C70: = | D70: =0.03*(D68+0.4*D69) -> 0.03446603713 | E70: Fixed O&M additional administrative labor costs
A72: FOM ($/kW yr) = FOMO + FOMM + FOMA | C72: = | D72: =D68+D69+D70 -> 1.550114059 | E72: Total Fixed O&M costs ($/kW yr)
A74: Variable O&M Cost
A76: VOMR ($/MWh) = M*R/A | C76: = | D76: =D17*D21/D7 -> 4.907619357 | E76: Variable O&M costs for Trona reagent
A77: VOMW ($/MWh) = (N+P)*S/A | C77: = | D77: =(D18+D19)*D22/D7 -> 1.292400598 | E77: Variable O&M costs for waste disposal that includes both the sorbent and the fly ash waste not removed prior to the sorbent injection
A78: VOMP ($/MWh) = Q*T*10 | C78: = | D78: =D20*D23*10 -> 0.4570288537 | E78: Variable O&M costs for additional auxiliary power required (Refer to Aux Power % above)
A80: VOM ($/MWh) = VOMR + VOMW + VOMP | C80: = | D80: =D76+D77+D78 -> 6.657048809 | E80: Total Variable O&M Costs ($/MW yr)
A82: Indirect Annual Costs
A84: Overhead (60% of total labor and material costs) | C84: = | D84: =0.6*D72*D7*1000 -> 128349.4441 | E84: CC Manual
A85: Administrative charges (2% of total capital investment) | C85: = | D85: =0.02*D51 -> 203728.0163 | E85: CC Manual
A86: Property tax (1% of total capital investment) | C86: = | D86: =0.01*D51 -> 101864.0081 | E86: CC Manual
A87: Insurance (1% of total capital investment) | C87: = | D87: =0.01*D51 -> 101864.0081 | E87: CC Manual
A88: Capital Recovery Factor (CRF) = [ i (1+i)n ] / [ (1+i)n - 1 ]
A89: i = Interest rate (%) | B89: 7
A90: n = Equipment life (years) | B90: 15
A91: CRF = | B91: =((B89/100)*((1+(B89/100))^B90))/(((1+(B89/100))^B90)-1) -> 0.1097946247 | C91: = | D91: =B91*D51 -> 1118412.055 | E91: CC Manual
A93: TOTAL INDIRECT ANNUAL OPERATING COSTS | C93: = | D93: =SUM(D84:D91) -> 1654217.531
A95: TOTAL ANNUALIZED OPERATING COSTS (2012 $) | C95: = | D95: =D72*D7*1000+D80*D7*8760+D93 -> 9915706.436
A98: Composite CE Index for 2012 (cost year of equation) | C98: = | D98: 584.6
A99: Composite CE Index for 2016 (cost year of review) | C99: = | D99: 536.4
A101: TOTAL ANNUALIZED OPERATING COSTS (2016 $) | C101: = | D101: =D95*D99/D98 -> 9098161.02
A104: TOTAL UNCONTROLLED SO2 EMISSIONS, tons | C104: = | D104: 1767.2 | E104: Statement of Basis for AQ1121TVP02 Revision 2 (includes 336,000 tpy combined limit for coal combustion)
A105: SO2 REMOVAL EFFICIENCY, % | C105: = | D105: =D14 -> 80
A106: TOTAL SO2 REMOVED, tons | C106: = | D106: =D104*D105/100 -> 1413.76
A108: SO2 COST-EFFECTIVENESS, $/ton removed | C108: = | D108: =D101/D106 -> 6435.435307

Sheet Spray Dry Absorber
A5: Spray Dry Absorber - Fort Wainwright
A7: Variable | B7: Designation | C7: Units | D7: Value | E7: Calculation
A8: Unit Size (Gross) | B8: A | C8: (MW) | D8: 138 | E8: <-- User Input (Conservative assumption based on a total heat input of 1380 MMBtu/hr)
A9: Retrofit Factor | B9: B | D9: 1 | E9: <-- User Input (An "average" retrofit has a factor of 1.0)
A10: Gross Heat Rate | B10: C | C10: (Btu/kWh) | D10: 10000 | E10: <-- User Input
A11: SO2 Rate | B11: D | C11: (lb/MMBtu) | D11: 0.46 | E11: <-- User Input (SDA FGD Estimation only valid up to 3lb/MMBtu SO2 Rate)
A12: Type of Coal | B12: E | D12: sub-bituminous | E12: <-- User Input
A13: Coal Factor | B13: F | D13: 1.05 | E13: Bituminous = 1, Sub-Bituminous = 1.05, Lignite = 1.07
A14: Heat Rate Factor | B14: G | D14: =D10/10000 -> 1 | E14: C/10000
A15: Heat Input | B15: H | C15: (Btu/hr) | D15: =D8*D10*1000 -> 1380000000 | E15: A*C*1000
A16: Lime Rate | B16: K | C16: (ton/hr) | D16: =(0.6702*(D11^2)+13.42*D11)*D8*D14/2000 -> 0.4357359881 | E16: (0.6702*(D^2)+13.42*D)*A*G/2000 (Based on 95% SO2 Removal)
A17: Waste Rate | B17: L | C17: (ton/hr) | D17: =(0.8016*(D11^2)+31.1917*D11)*D8*D14/2000 -> 1.001728239 | E17: (0.8016*(D^2)+31.1917*D)*A*G/2000
A18: Aux Power | B18: M | C18: (%) | D18: =(0.000547*(D11^2)+0.00649*D11+1.3)*D13*D14 -> 1.368256202 | E18: (0.000547*(D^2)+0.00649*D+1.3)*F*G
A19: Makeup Water Rate | B19: N | C19: (1000 gph) | D19: =(0.04898*(D11^2)+0.5925*D11+55.11)*D8*D13*D14/1000 -> 8.026433263 | E19: (0.04898*(D^2)+0.5925*D+55.11)*A*F*G/1000
A20: Lime Cost | B20: P | C20: ($/ton) | D20: 80 | E20: <-- User Input ( https://www3.epa.gov/ttncatc1/dir1/ffdg.pdf )
A21: Waste Disposal Cost | B21: Q | C21: ($/ton) | D21: 30 | E21: <-- User Input ( https://www3.epa.gov/ttncatc1/dir1/ffdg.pdf )
A22: Aux Power Cost | B22: R | C22: ($/kWh) | D22: 0.21 | E22: <-- User Input ( http://www.gvea.com/rates/rates )
A23: Makeup Water Cost | B23: S | C23: ($/1000 gal) | D23: 7.17 | E23: <-- User Input ( http://www.newsminer.com/water-rates/article_11a2ba10-c211-562e-8da9-87dd16a7b104.html )
A24: Operating Labor Rate | B24: T | C24: ($/hr) | D24: 60 | E24: Labor cost including all benefits
A25: IPM Model - Updates to Cost and Performance for APC Technologies - SDA FGD for SO2 Control Cost Development Methodology, March 2013, prepared by Sargent & Lundy LLC for US EPA. https://www.epa.gov/sites/production/files/2015-07/documents/chapter_5_appendix_5-1b_sda_fgd.pdf
A26: Capital Cost Calculation (2012 dollars) | E26: Comments
A28: Includes - Equipment, installation, building, foundations, electrical, and a retrofit difficulty factor of 1.0
A30: BMR ($) = if(A>600 then (A*92,000) else 566,000*(A^0.716))*B*(F*G)^0.6*(D/4)^0.01 | C30: = | D30: =IF(D8>600,(D8*92000),(566000*D8^0.716))*D9*(D13*D14)^0.6*(D11/4)^0.01 -> 19421841.92 | E30: Base module absorber island cost
A32: BMF ($) = if(A>600 then (A*48,700) else 300,000*(A^0.716))*B*(D*G)^0.2 | C32: = | D32: =IF(D8>600,D8*48700,300000*(D8^0.716)*D9*(D11*D14)^0.2) -> 8746337.806 | E32: Base module reagent preparation and waste recycle/handling cost
A34: BMB ($) = if(A>600 then (A*129,900) else 799,000*(A^0.716))*B*(F*G)^0.4 | C34: = | D34: =IF(D8>600,D8*129900,799000*(D8^0.716)*D9*(D13*D14)^0.4) -> 27744437.54 | E34: Base module balance of plan cost including: ID or booster fans, piping, ductwork, electrical, etc…
A36: Base Module (BM) ($) | C36: = | D36: =D30+D32+D34 -> 55912617.26 | E36: Base DSI module includes all equipment from unloading to injection
A37: BM ($/kW) | C37: = | D37: =D36/(D8*1000) -> 405.1638932 | E37: Base module cost per kW
A39: Total Project Cost
A41: A1 = 10% of BM | C41: = | D41: =0.1*$D$36 -> 5591261.726 | E41: Engineering and construction management costs (CC Manual)
A42: A2 = 10% of BM | C42: = | D42: =0.1*$D$36 -> 5591261.726 | E42: Labor adjustment for 6 x 10 hour shift premium, per diem, etc. (CC Manual)
A43: A3 = 10% of BM | C43: = | D43: =0.1*$D$36 -> 5591261.726 | E43: Contractor profit and fees (CC Manual)
A45: CECC ($) - Excludes Owner's Costs = BM + A1 + A2 + A3 | C45: = | D45: =D36+D41+D42+D43 -> 72686402.44 | E45: Capital, engineering, and construction costs subtotal
A46: CECC ($/kW) - Excludes Owner's Costs | C46: = | D46: =D45/(D8*1000) -> 526.7130612 | E46: Capital, engineering, and construction costst subtotal per kW
A48: B1 = 5% of CECC | C48: = | D48: =0.05*D45 -> 3634320.122 | E48: Owner's costs including all "home office" costs (owner's engineering, management, and procurement activities)
A50: TPC ($) - Includes Owners Costs = CECC + B1 | C50: = | D50: =D45+D48 -> 76320722.56 | E50: Total project cost without Allowance for Funds Used During Construction (AFUDC)
A51: TPC ($/kW) - Include Owner's Costs | C51: = | D51: =D50/(D8*1000) -> 553.0487142 | E51: Total project cost per kW without AFUDC
A53: B2 = 10% of (CECC + B1) | C53: = | D53: =0.1*(D45+D48) -> 7632072.256 | E53: AFUDC (Zero for less than 1 year engineering and construction cycle)
A55: TPC ($) = CECC + B1 + B2 | C55: = | D55: =D50+D53 -> 83952794.82 | E55: Total project cost
A56: TPC ($/kW) | C56: = | D56: =D55/(D8*1000) -> 608.3535856 | E56: Total project cost per kW
A68: Spray Dry Absorber - Fort Wainwright
A71: Direct Annual Costs
A72: Fixed O&M Cost
A74: FOMO ($/kW yr) = (4 additional operators)*(2080)*T/(A*1000) | C74: = | D74: =4*2080*D24/(D8*1000) -> 3.617391304 | E74: Fixed O&M additional operating labor costs
A75: FOMM ($/kW yr) = BM*0.015/(B*A*1000) | C75: = | D75: =D36*0.015/(D9*D8*1000) -> 6.077458398 | E75: Fixed O&M additional maintenance material and labor costs
A76: FOMA ($/kW yr) = 0.03*(FOMO+0.4*FOMM) | C76: = | D76: =0.03*(D74+0.4*D75) -> 0.1814512399 | E76: Fixed O&M additional administrative labor costs
A78: FOM ($/kW yr) = FOMO + FOMM + FOMA | C78: = | D78: =D74+D75+D76 -> 9.876300942 | E78: Total Fixed O&M costs ($/kW yr)
A80: Variable O&M Cost
A82: VOMR ($/MWh) = K*P/A | C82: = | D82: =D16*D20/D8 -> 0.2526005728 | E82: Variable O&M costs for lime reagent
A83: VOMW ($/MWh) = L*Q/A | C83: = | D83: =D17*D21/D8 -> 0.2177670084 | E83: Variable O&M costs for waste disposal
A84: VOMP ($/MWh) = M*R*10 | C84: = | D84: =D18*D22*10 -> 2.873338025 | E84: Variable O&M costs for additional auxiliary power required (Refer to Aux Power % above)
A85: VOMM ($/MWh) = N*S/A | C85: = | D85: =D19*D23/D8 -> 0.4170255543 | E85: Variable O&M costs for makeup water
A87: VOM ($/MWh) = VOMR + VOMW + VOMP + VOMM | C87: = | D87: =D82+D83+D84+D85 -> 3.760731161 | E87: Total Variable O&M Costs ($/MW yr)
A89: Indirect Annual Costs
A91: Overhead (60% of total labor and material costs) | C91: = | D91: =0.6*D78*D8*1000 -> 817757.718 | E91: CC Manual
A92: Administrative charges (2% of total capital investment) | C92: = | D92: =0.02*D55 -> 1679055.896 | E92: CC Manual
A93: Property tax (1% of total capital investment) | C93: = | D93: =0.01*D55 -> 839527.9482 | E93: CC Manual
A94: Insurance (1% of total capital investment) | C94: = | D94: =0.01*D55 -> 839527.9482 | E94: CC Manual
A95: Capital Recovery Factor (CRF) = [ i (1+i)n ] / [ (1+i)n - 1 ]
A96: i = Interest rate (%) | B96: 7
A97: n = Equipment life (years) | B97: 15
A98: CRF = | B98: =((B96/100)*((1+(B96/100))^B97))/(((1+(B96/100))^B97)-1) -> 0.1097946247 | C98: = | D98: =B98*D55 -> 9217565.6 | E98: CC Manual
A100: TOTAL INDIRECT ANNUAL OPERATING COSTS | C100: = | D100: =SUM(D91:D98) -> 13393435.11
A102: TOTAL ANNUALIZED OPERATING COSTS (2012 $) | C102: = | D102: =D78*D8*1000+D87*D8*8760+D100 -> 19302637.33
A105: Composite CE Index for 2012 (cost year of equation) | C105: = | D105: 584.6
A106: Composite CE Index for 2016 (cost year of review) | C106: = | D106: 536.4
A108: TOTAL ANNUALIZED OPERATING COSTS (2016 $) | C108: = | D108: =D102*D106/D105 -> 17711143.79
A111: TOTAL UNCONTROLLED SO2 EMISSIONS, tons | C111: = | D111: 1767.2 | E111: Statement of Basis for AQ1121TVP02 Revision 2 (includes 336,000 tpy combined limit for coal combustion)
A112: SO2 REMOVAL EFFICIENCY, % | C112: = | D112: 90
A113: TOTAL SO2 REMOVED, tons | C113: = | D113: =D111*D112/100 -> 1590.48
A115: SO2 COST-EFFECTIVENESS, $/ton removed | C115: = | D115: =D108/D113 -> 11135.72242

Sheet Wet Scrubber
A5: Wet Scrubber - Fort Wainwright
A7: Variable | B7: Designation | C7: Units | D7: Value | E7: Calculation
A8: Unit Size (Gross) | B8: A | C8: (MW) | D8: 138 | E8: <-- User Input (Conservative assumption based on a total heat input of 1380 MMBtu/hr)
A9: Retrofit Factor | B9: B | D9: 1 | E9: <-- User Input (An "average" retrofit has a factor of 1.0) Sargent and Lundy has a drop down menu for selection of an additional waste water treatment plant facility, but no capital or operational cost are implemented so it is not reproduced here.
A10: Gross Heat Rate | B10: C | C10: (Btu/kWh) | D10: 10000 | E10: <-- User Input
A11: SO2 Rate | B11: D | C11: (lb/MMBtu) | D11: 0.46 | E11: <-- User Input
A12: Type of Coal | B12: E | D12: sub-bituminous | E12: <-- User Input
A13: Coal Factor | B13: F | D13: 1.05 | E13: Bituminous = 1, Sub-Bituminous = 1.05, Lignite = 1.07
A14: Heat Rate Factor | B14: G | D14: =D10/10000 -> 1 | E14: C/10000
A15: Heat Input | B15: H | C15: (Btu/hr) | D15: =D8*D10*1000 -> 1380000000 | E15: A*C*1000
A16: Limestone Rate | B16: K | C16: (ton/hr) | D16: =17.52*D8*D11*D14/2000 -> 0.5560848 | E16: 17.52*A*D*G/2000
A17: Waste Rate | B17: L | C17: (ton/hr) | D17: =1.811*D16 -> 1.007069573 | E17: 1.811*K
A18: Aux Power | B18: M | C18: (%) | D18: =(1.05*EXP(0.155*D11))*D13*D14 -> 1.183978442 | E18: (1.05e^(0.155*D))*F*G
A19: Makeup Water Rate | B19: N | C19: (1000 gph) | D19: =(1.674*D11+74.68)*D8*D13*D14/1000 -> 10.9327108 | E19: (1.674*D+74.68)*A*F*G/1000
A20: Limestone Cost | B20: P | C20: ($/ton) | D20: 20 | E20: <-- User Input (https://www3.epa.gov/ttncatc1/dir1/ffdg.pdf)
A21: Waste Disposal Cost | B21: Q | C21: ($/ton) | D21: 30 | E21: <-- User Input (https://www3.epa.gov/ttncatc1/dir1/ffdg.pdf)
A22: Aux Power Cost | B22: R | C22: ($/kWh) | D22: 0.21 | E22: <-- User Input (http://www.gvea.com/rates/rates)
A23: Makeup Water Cost | B23: S | C23: ($/1000 gal) | D23: 7.17 | E23: <-- User Input (http://www.newsminer.com/water-rates/article_11a2ba10-c211-562e-8da9-87dd16a7b104.html)
A24: Operating Labor Rate | B24: T | C24: ($/hr) | D24: 60 | E24: Labor cost including all benefits
A25: IPM Model - Updates to Cost and Performance for APC Technologies - Wet FGD for SO2 Control Cost Development Methodology, August 2010, prepared by Sargent & Lundy LLC for US EPA. https://www.epa.gov/sites/production/files/2015-07/documents/chapter_5_appendix_5-1a_wet_fgd.pdf
A26: Capital Cost Calculation (2012 dollars) | E26: Comments
A28: Includes - Equipment, installation, building, foundations, electrical, minor physical/chemical waste water treatment, and a retrofit difficulty factor of 1.0
A30: BMR ($) = 550,000*(B)*((F*G)^0.6)*((D/2)^0.02)*(A^0.716) | C30: = | D30: =550000*(D9)*((D13*D14)^0.6)*((D11/2)^0.02)*(D8^0.716) -> 18726829.29 | E30: Base absorber island cost
A32: BMF ($) = 190,000*(B)*((D*G)^0.3)*(A^0.716) | C32: = | D32: =190000*(D9)*((D11*D14)^0.3)*(D8^0.716) -> 5125478.03 | E32: Base reagent preparation cost
A34: BMW ($) = 100,000*(B)*((D*G)^0.45)*(A^0.716) | C34: = | D34: =100000*(D9)*((D11*D14)^0.45)*(D8^0.716) -> 2401012.661 | E34: Base waste handling cost
A36: BMB ($) = 1,010,000*(B)*((F*G)^0.4)*(A^0.716) | C36: = | D36: =1010000*(D9)*((D13*D14)^0.4)*(D8^0.716) -> 35071191.38 | E36: Base balance of plan cost including: ID or booster fans, new wet chimney, piping, ductwork, minor waste water treatment, etc…
A38: BMWW ($) = | C38: = | D38: 0 | E38: Base wastewater treatment facility, beyond minor physical/chemcial treatment
A40: Base Module (BM) ($) = BMR + BMF + BMW + BMB + BMWW | C40: = | D40: =D30+D32+D34+D36+D38 -> 61324511.36 | E40: Total base cost including retrofit factor
A41: BM ($/kW) | C41: = | D41: =D40/(D8*1000) -> 444.3805171 | E41: Base cost per kW
A43: Total Project Cost
A45: A1 = 10% of BM | C45: = | D45: =0.1*$D$40 -> 6132451.136 | E45: Engineering and construction management costs (CC Manual)
A46: A2 = 10% of BM | C46: = | D46: =0.1*$D$40 -> 6132451.136 | E46: Labor adjustment for 6 x 10 hour shift premium, per diem, etc. (CC Manual)
A47: A3 = 10% of BM | C47: = | D47: =0.1*$D$40 -> 6132451.136 | E47: Contractor profit and fees (CC Manual)
A49: CECC ($) - Excludes Owner's Costs = BM + A1 + A2 + A3 | C49: = | D49: =D40+D45+D46+D47 -> 79721864.77 | E49: Capital, engineering, and construction costs subtotal
A50: CECC ($/kW) - Excludes Owner's Costs = | C50: = | D50: =D49/(D8*1000) -> 577.6946722 | E50: Capital, engineering, and construction costst subtotal per kW
A52: B1 = 5% of CECC | C52: = | D52: =0.05*D49 -> 3986093.238 | E52: Owner's costs including all "home office" costs (owner's engineering, management, and procurement activities)
A54: TPC ($) - Includes Owners Costs = CECC + B1 | C54: = | D54: =D49+D52 -> 83707958.01 | E54: Total project cost without Allowance for Funds Used During Construction (AFUDC)
A55: TPC ($/kW) - Include Owner's Costs = | C55: = | D55: =D54/(D8*1000) -> 606.5794058 | E55: Total project cost per kW without AFUDC
A57: B2 = 10% of (CECC + B1) | C57: = | D57: =0.1*(D49+D52) -> 8370795.801 | E57: AFUDC (based on a 3 year engineering and construction cycle)
A59: TPC ($) - Includes Owner's Costs and AFUDC = CECC + B1 + B2 | C59: = | D59: =D54+D57 -> 92078753.81 | E59: Total project cost
A60: TPC ($/kW) - Includes Owner's Costs and AFUDC = | C60: = | D60: =D59/(D8*1000) -> 667.2373464 | E60: Total project cost per kW
A76: Wet Scrubber - Fort Wainwright
A79: Direct Annual Costs
A80: Fixed O&M Cost
A82: FOMO ($/kW yr) = (6 additional operators)*(2080)*T/(A*1000) | C82: = | D82: =6*2080*D24/(D8*1000) -> 5.426086957 | E82: Fixed O&M additional operating labor costs
A83: FOMM ($/kW yr) = BM*0.015/(B*A*1000) | C83: = | D83: =D40*0.015/(D9*D8*1000) -> 6.665707757 | E83: Fixed O&M additional maintenance material and labor costs
A84: FOMA ($/kW yr) = 0.03*(FOMO+0.4*FOMM) | C84: = | D84: =0.03*(D82+0.4*D83) -> 0.2427711018 | E84: Fixed O&M additional administrative labor costs
A85: FOMWW ($/kW yr) = | D85: 0 | E85: Fixed O&M costs for wastewater treatment facility
A87: FOM ($/kW yr) = FOMO + FOMM + FOMA + FOMWW | C87: = | D87: =D82+D83+D84+D85 -> 12.33456581 | E87: Total Fixed O&M costs ($/kW yr)
A89: Variable O&M Cost
A91: VOMR ($/MWh) = K*P/A | C91: = | D91: =D16*D20/D8 -> 0.080592 | E91: Variable O&M costs for limestone reagent
A92: VOMW ($/MWh) = L*Q/A | C92: = | D92: =D17*D21/D8 -> 0.218928168 | E92: Variable O&M costs for waste disposal
A93: VOMP ($/MWh) = M*R*10 | C93: = | D93: =D18*D22*10 -> 2.486354728 | E93: Variable O&M costs for additional auxiliary power required including additional fan power (Refer to Aux Power % above)
A94: VOMM ($/MWh) = N*S/A | C94: = | D94: =D19*D23/D8 -> 0.5680256261 | E94: Variable O&M costs for makeup water
A95: VOMWW ($/MWh) = | C95: = | D95: 0 | E95: Variable O&M costs for wastewater treatment facility
A97: VOM ($/MWh) = VOMR + VOMW + VOMP + VOMM + VOMWW | C97: = | D97: =D91+D92+D93+D94+D95 -> 3.353900522 | E97: Total Variable O&M Costs ($/MW yr)
A99: Indirect Annual Costs
A101: Overhead (60% of total labor and material costs) | C101: = | D101: =0.6*D87*D8*1000 -> 1021302.049 | E101: CC Manual
A102: Administrative charges (2% of total capital investment) | C102: = | D102: =0.02*D59 -> 1841575.076 | E102: CC Manual
A103: Property tax (1% of total capital investment) | C103: = | D103: =0.01*D59 -> 920787.5381 | E103: CC Manual
A104: Insurance (1% of total capital investment) | C104: = | D104: =0.01*D59 -> 920787.5381 | E104: CC Manual
A105: Capital Recovery Factor (CRF) = [ i (1+i)n ] / [ (1+i)n - 1 ]
A106: i = Interest rate (%) | B106: 7
A107: n = Equipment life (years) | B107: 15
A108: CRF = | B108: =((B106/100)*((1+(B106/100))^B107))/(((1+(B106/100))^B107)-1) -> 0.1097946247 | C108: = | D108: =B108*D59 -> 10109752.22 | E108: CC Manual
A110: TOTAL INDIRECT ANNUAL OPERATING COSTS | C110: = | D110: =SUM(D101:D108) -> 14814204.42
A112: TOTAL ANNUALIZED OPERATING COSTS (2012 $) | C112: = | D112: =D87*D8*1000+D97*D8*8760+D110 -> 20570837.76
A115: Composite CE Index for 2012 (cost year of equation) | C115: = | D115: 584.6
A116: Composite CE Index for 2016 (cost year of review) | C116: = | D116: 536.4
A118: TOTAL ANNUALIZED OPERATING COSTS (2016 $) | C118: = | D118: =D112*D116/D115 -> 18874781.69
A121: TOTAL UNCONTROLLED SO2 EMISSIONS, tons | C121: = | D121: 1767.2 | E121: Statement of Basis for AQ1121TVP02 Revision 2 (includes 336,000 tpy combined limit for coal combustion)
A122: SO2 REMOVAL EFFICIENCY, % | C122: = | D122: 99
A123: TOTAL SO2 REMOVED, tons | C123: = | D123: =D121*D122/100 -> 1749.528
A125: SO2 COST-EFFECTIVENESS, $/ton removed | C125: = | D125: =D118/D123 -> 10788.49935 | E125: Does not include costs associated with building and maintaining a wastewater treatment facility

Sheet ESRI_MAPINFO_SHEET (hidden)
